fUSD/lending_fUSD_20240609
["ID","MTS","AMOUNT","RATE_DAILY","PERIOD"]
[328890664,1717962660592,-500.0,0.00029298,4]
[328890665,1717962660602,-379.42498177,0.00029298,4]
[328890666,1717962660613,-223.76083556,0.00029298,4]
[328890667,1717962661102,-0.02025744,0.00029298,4]
[328890668,1717962661115,-354.53070005,0.00029298,4]
[328890669,1717962661125,-508.37385576,0.00029298,4]
[328890670,1717962661136,-500.0,0.00029298,4]
[328890671,1717962661146,-504.07329312,0.00029298,4]
[328890672,1717962661158,-541.92494447,0.00029298,4]
[328890673,1717962661174,-469.87998686,0.00029298,4]
[328890674,1717962661206,-30.12001314,0.00029298,4]
[328890675,1717962661216,-500.0,0.00029298,4]
[328890676,1717962661227,-541.34995246,0.00029298,4]
[328890677,1717962661239,-500.0,0.00029298,4]
[328890678,1717962661250,-545.45110217,0.00029298,4]
[328890679,1717962661261,-500.0,0.00029298,4]
[328890680,1717962661271,-542.09195909,0.00029298,4]
[328890681,1717962661282,-500.0,0.00029298,4]
[328890682,1717962661294,-500.0,0.00029298,4]
[328890683,1717962661306,-500.0,0.00029298,4]
[328890684,1717962661316,-530.95173144,0.00029298,4]
[328890685,1717962661326,-531.00537075,0.00029298,4]
[328890686,1717962661337,-500.0,0.00029298,4]
[328890687,1717962661347,-500.0,0.00029298,4]
[328890688,1717962661358,-500.0,0.00029298,4]
[328890689,1717962661369,-421.11116441,0.00029298,4]
[328890690,1717962661379,-500.0,0.00029298,4]
[328890691,1717962661390,-500.0,0.00029298,4]
[328890692,1717962661400,-500.0,0.00029298,4]
[328890693,1717962661409,-357.36296914,0.00029298,4]
[328890694,1717962661421,-503.1757985,0.00029298,4]
[328890695,1717962661431,-500.0,0.00029298,4]
[328890696,1717962661442,-500.0,0.00029298,4]
[328890697,1717962661452,-241.46755615,0.00029298,4]
[328890698,1717962661467,-258.53244385,0.00029298,4]
[328890699,1717962661478,-500.0,0.00029298,4]
[328890700,1717962661488,-500.0,0.00029298,4]
[328890701,1717962661498,-500.0,0.00029298,4]
[328890702,1717962661508,-507.18124856,0.00029298,4]
[328890703,1717962661519,-507.29142274,0.00029298,4]
[328890704,1717962661529,-500.0,0.00029298,4]
[328890705,1717962661540,-500.0,0.00029298,4]
[328890706,1717962661550,-500.0,0.00029298,4]
[328890707,1717962661563,-500.0,0.00029298,4]
[328890708,1717962661573,-417.17030271,0.00029298,4]
[328890709,1717962661584,-505.82256492,0.00029298,4]
[328890710,1717962661595,-1004.78345633,0.00029298,4]
[328890711,1717962661605,-500.0,0.00029298,4]
[328890712,1717962661616,-503.63683551,0.00029298,4]
[328890713,1717962661626,-532.71802902,0.00029298,4]
[328890714,1717962661636,-500.0,0.00029298,4]
[328890715,1717962661648,-520.45606259,0.00029298,4]
[328890716,1717962661659,-580.26047568,0.00029298,4]
[328890717,1717962661669,-500.0,0.00029298,4]
[328890718,1717962661680,-528.2956222,0.00029298,4]
[328890719,1717962661690,-500.0,0.00029298,4]
[328890720,1717962661701,-500.0,0.00029298,4]
[328890721,1717962661711,-500.0,0.00029298,4]
[328890722,1717962661721,-500.0,0.00029298,4]
[328890723,1717962661731,-500.0,0.00029298,4]
[328890724,1717962661743,-529.51993427,0.00029298,4]
[328890725,1717962661754,-500.0,0.00029298,4]
[328890726,1717962661764,-500.0,0.00029298,4]
[328890727,1717962661774,-500.0,0.00029298,4]
[328890728,1717962661785,-510.72001667,0.00029298,4]
[328890729,1717962661795,-500.0,0.00029298,4]
[328890730,1717962661893,-500.0,0.00029298,4]
[328890731,1717962661904,-151.0,0.00029298,7]
[328890732,1717962661914,-500.0,0.00029298,4]
[328890733,1717962661924,-500.0,0.00029298,4]
[328890734,1717962661934,-269.572732,0.00029298,7]
[328890735,1717962661944,-531.68835193,0.00029298,4]
[328890736,1717962661954,-500.0,0.00029298,4]
[328890737,1717962661964,-500.0,0.00029298,4]
[328890738,1717962661974,-500.0,0.00029298,4]
[328890739,1717962661984,-501.9743124,0.00029298,4]
[328890740,1717962661994,-500.0,0.00029298,4]
[328890741,1717962662004,-500.0,0.00029298,4]
[328890742,1717962662015,-500.0,0.00029298,4]
[328890743,1717962662027,-513.26569171,0.00029298,4]
[328890744,1717962662037,-500.0,0.00029298,4]
[328890745,1717962662047,-500.0,0.00029298,4]
[328890746,1717962662058,-513.23654077,0.00029298,4]
[328890747,1717962662069,-500.0,0.00029298,4]
[328890748,1717962662079,-500.0,0.00029298,4]
[328890749,1717962662090,-541.70403826,0.00029298,4]
[328890750,1717962662100,-500.0,0.00029298,4]
[328890751,1717962662110,-500.0,0.00029298,4]
[328890752,1717962662121,-616.37911963,0.00029298,4]
[328890753,1717962662131,-191.53010034,0.00029298,4]
[328890754,1717962662141,-500.0,0.00029298,4]
[328890755,1717962662152,-500.0,0.00029298,4]
[328890756,1717962662167,-500.0,0.00029298,4]
[328890757,1717962662178,-500.0,0.00029298,4]
[328890758,1717962662189,-570.2,0.00029298,4]
[328890759,1717962662199,-259.37703509,0.00029298,4]
[328890760,1717962662210,-570.2,0.00029298,4]
[328890761,1717962662222,-570.2,0.00029298,4]
[328890762,1717962662232,-570.2,0.00029298,4]
[328890763,1717962662243,-570.2,0.00029298,4]
[328890764,1717962662254,-570.2,0.00029298,4]
[328890765,1717962662264,-570.2,0.00029298,4]
[328890766,1717962662275,-570.2,0.00029298,4]
[328890767,1717962662285,-570.2,0.00029298,4]
[328890768,1717962662295,-570.2,0.00029298,4]
[328890769,1717962662306,-570.2,0.00029298,4]
[328890770,1717962662317,-570.2,0.00029298,4]
[328890771,1717962662327,-570.2,0.00029298,4]
[328890772,1717962662337,-545.56,0.00029298,4]
[328890773,1717962662348,-545.56,0.00029298,4]
[328890774,1717962662358,-545.56,0.00029298,4]
[328890775,1717962662369,-545.56,0.00029298,4]
[328890776,1717962662380,-545.56,0.00029298,4]
[328890777,1717962662391,-545.56,0.00029298,4]
[328890778,1717962662402,-545.56,0.00029298,4]
[328890779,1717962662413,-545.56,0.00029298,4]
[328890780,1717962662424,-545.56,0.00029298,4]
[328890781,1717962662434,-545.56,0.00029298,4]
[328890782,1717962662445,-545.56,0.00029298,4]
[328890783,1717962662456,-545.56,0.00029298,4]
[328890784,1717962662467,-545.56,0.00029298,4]
[328890785,1717962662478,-500.0,0.00029298,4]
[328890786,1717962662489,-347.46761931,0.00029298,2]
[328890787,1717962662501,-500.0,0.00029298,4]
[328890788,1717962662511,-200.65487988,0.00029298,4]
[328890789,1717962662522,-502.4146379,0.00029298,4]
[328890790,1717962662532,-500.0,0.00029298,4]
[328890791,1717962662542,-500.0,0.00029298,4]
[328890792,1717962662554,-500.0,0.00029298,4]
[328890793,1717962662566,-500.0,0.00029298,4]
[328890794,1717962662576,-500.0,0.00029298,4]
[328890795,1717962662587,-500.0,0.00029298,4]
[328890796,1717962662598,-500.0,0.00029298,4]
[328890797,1717962662609,-168.66585726,0.00029298,4]
[328890798,1717962662620,-500.0,0.00029298,4]
[328890799,1717962662630,-540.9592345,0.00029298,4]
[328890800,1717962662640,-500.0,0.00029298,4]
[328890801,1717962662651,-600.5307563,0.00029298,4]
[328890802,1717962662661,-564.4,0.00029298,4]
[328890803,1717962662671,-564.4,0.00029298,4]
[328890804,1717962662682,-564.4,0.00029298,4]
[328890805,1717962662691,-564.4,0.00029298,4]
[328890806,1717962662701,-500.0,0.00029298,4]
[328890807,1717962662711,-564.4,0.00029298,4]
[328890808,1717962662721,-500.0,0.00029298,4]
[328890809,1717962662731,-564.4,0.00029298,4]
[328890810,1717962662740,-500.0,0.00029298,4]
[328890811,1717962662750,-564.4,0.00029298,4]
[328890812,1717962662759,-528.40252605,0.00029298,4]
[328890813,1717962662769,-564.4,0.00029298,4]
[328890814,1717962662780,-564.4,0.00029298,4]
[328890815,1717962662791,-564.4,0.00029298,4]
[328890816,1717962662801,-505.00922278,0.00029298,4]
[328890817,1717962662811,-564.4,0.00029298,4]
[328890818,1717962662822,-564.4,0.00029298,4]
[328890819,1717962662832,-564.4,0.00029298,4]
[328890820,1717962662843,-544.38341153,0.00029298,4]
[328890821,1717962662853,-504.77589424,0.00029298,4]
[328890822,1717962662864,-508.9724532,0.00029298,4]
[328890823,1717962662874,-500.0,0.00029298,4]
[328890824,1717962662885,-500.0,0.00029298,4]
[328890825,1717962662896,-500.0,0.00029298,4]
[328890826,1717962662907,-552.93579329,0.00029298,4]
[328890827,1717962662918,-500.0,0.00029298,4]
[328890828,1717962662928,-500.0,0.00029298,4]
[328890829,1717962662940,-311.6167224,0.00029298,4]
[328890830,1717962662950,-500.0,0.00029298,4]
[328890831,1717962662961,-500.0,0.00029298,4]
[328890832,1717962662971,-500.0,0.00029298,4]
[328890833,1717962662983,-500.0,0.00029298,4]
[328890834,1717962662994,-516.15628318,0.00029298,4]
[328890835,1717962663005,-500.0,0.00029298,4]
[328890836,1717962663015,-516.50830717,0.00029298,4]
[328890837,1717962663025,-622.55909445,0.00029298,4]
[328890838,1717962663036,-898.11,0.00029298,4]
[328890839,1717962663046,-169.335267,0.00029298,7]
[328890840,1717962663058,-898.11,0.00029298,4]
[328890841,1717962663068,-898.11,0.00029298,4]
[328890842,1717962663079,-898.11,0.00029298,4]
[328890843,1717962663089,-241.88192109,0.00029298,4]
[328890844,1717962663099,-898.11,0.00029298,4]
[328890845,1717962663110,-500.0,0.00029298,4]
[328890846,1717962663120,-898.11,0.00029298,4]
[328890847,1717962663131,-500.0,0.00029298,4]
[328890848,1717962663143,-898.11,0.00029298,4]
[328890849,1717962663154,-500.0,0.00029298,4]
[328890850,1717962663168,-898.11,0.00029298,4]
[328890851,1717962663179,-500.0,0.00029298,4]
[328890852,1717962663189,-898.11,0.00029298,4]
[328890853,1717962663200,-557.62423399,0.00029298,4]
[328890854,1717962663211,-898.11,0.00029298,4]
[328890855,1717962663221,-898.11,0.00029298,4]
[328890856,1717962663232,-898.11,0.00029298,4]
[328890857,1717962663244,-500.0,0.00029298,4]
[328890858,1717962663255,-898.11,0.00029298,4]
[328890859,1717962663265,-500.0,0.00029298,4]
[328890860,1717962663275,-500.0,0.00029298,4]
[328890861,1717962663285,-500.0,0.00029298,4]
[328890862,1717962663295,-500.0,0.00029298,4]
[328890863,1717962663306,-500.0,0.00029298,4]
[328890864,1717962663317,-500.0,0.00029298,4]
[328890865,1717962663327,-580.17,0.00029298,4]
[328890866,1717962663338,-528.0,0.00029298,4]
[328890867,1717962663348,-557.47705419,0.00029298,4]
[328890868,1717962663358,-151.0,0.00029298,7]
[328890869,1717962663369,-276.817756,0.00029298,7]
[328890870,1717962663379,-493.22232253,0.00029298,4]
[328890871,1717962663390,-510.74586591,0.00029298,4]
[328890872,1717962663400,-522.82937219,0.00029298,4]
[328890873,1717962663411,-500.0,0.00029298,4]
[328890874,1717962663421,-576.56785856,0.00029298,4]
[328890875,1717962663431,-502.78443248,0.00029298,4]
[328890876,1717962663442,-275.42011817,0.00029298,4]
[328890877,1717962663452,-500.0,0.00029298,4]
[328890878,1717962663464,-500.0,0.00029298,4]
[328890879,1717962663474,-512.04216905,0.00029298,4]
[328890880,1717962663485,-161.45406471,0.00029298,4]
[328890881,1717962663496,-500.0,0.00029298,2]
[328890882,1717962663506,-510.03355195,0.00029298,4]
[328890883,1717962663516,-500.0,0.00029298,2]
[328890884,1717962663526,-500.0,0.00029298,2]
[328890885,1717962663537,-500.0,0.00029298,2]
[328890886,1717962663547,-500.0,0.00029298,2]
[328890887,1717962663559,-500.0,0.00029298,2]
[328890888,1717962663569,-500.0,0.00029298,2]
[328890889,1717962663579,-500.0,0.00029298,2]
[328890890,1717962663590,-500.0,0.00029298,4]
[328890891,1717962663600,-500.0,0.00029298,2]
[328890892,1717962663610,-517.14807181,0.00029298,4]
[328890893,1717962663621,-500.0,0.00029298,2]
[328890894,1717962663631,-641.31002459,0.00029298,2]
[328890895,1717962663726,-500.0,0.00029298,4]
[328890896,1717962663737,-500.0,0.00029298,4]
[328890897,1717962663749,-500.0,0.00029298,4]
[328890898,1717962663760,-596.1007909,0.00029298,4]
[328890899,1717962663770,-503.17451512,0.00029298,4]
[328890900,1717962663781,-515.01669924,0.00029298,4]
[328890901,1717962663791,-500.0,0.00029298,4]
[328890902,1717962663802,-500.0,0.00029298,4]
[328890903,1717962663813,-542.08,0.00029298,4]
[328890904,1717962663823,-670.58,0.00029298,4]
[328890905,1717962663834,-670.58,0.00029298,4]
[328890906,1717962663844,-670.58,0.00029298,4]
[328890907,1717962663854,-670.58,0.00029298,4]
[328890908,1717962663864,-500.0,0.00029298,4]
[328890909,1717962663875,-509.46946616,0.00029298,4]
[328890910,1717962663885,-227.303828,0.00029298,7]
[328890911,1717962663896,-670.58,0.00029298,4]
[328890912,1717962663907,-500.0,0.00029298,4]
[328890913,1717962663920,-670.58,0.00029298,4]
[328890914,1717962663931,-170.95560675,0.00029298,4]
[328890915,1717962663942,-670.58,0.00029298,4]
[328890916,1717962663955,-670.58,0.00029298,4]
[328890917,1717962663967,-670.58,0.00029298,4]
[328890918,1717962663978,-670.58,0.00029298,4]
[328890919,1717962663989,-670.58,0.00029298,4]
[328890920,1717962664000,-500.0,0.00029298,4]
[328890921,1717962664010,-670.58,0.00029298,4]
[328890922,1717962664022,-532.11132808,0.00029298,4]
[328890923,1717962664034,-670.58,0.00029298,4]
[328890924,1717962664044,-504.93281029,0.00029298,4]
[328890925,1717962664054,-211.001114,0.00029298,7]
[328890926,1717962664065,-512.43628904,0.00029298,4]
[328890927,1717962664075,-516.88130588,0.00029298,4]
[328890928,1717962664085,-505.94791385,0.00029298,4]
[328890929,1717962664095,-505.73158925,0.00029298,4]
[328890930,1717962664106,-500.67785763,0.00029298,4]
[328890931,1717962664115,-500.0,0.00029298,4]
[328890932,1717962664126,-500.0,0.00029298,4]
[328890933,1717962664138,-500.0,0.00029298,4]
[328890934,1717962664148,-500.0,0.00029298,4]
[328890935,1717962664160,-500.0,0.00029298,4]
[328890936,1717962664175,-500.0,0.00029298,4]
[328890937,1717962664187,-500.0,0.00029298,4]
[328890938,1717962664197,-500.0,0.00029298,4]
[328890939,1717962664208,-500.0,0.00029298,4]
[328890940,1717962664220,-532.82033536,0.00029298,4]
[328890941,1717962664231,-500.0,0.00029298,4]
[328890942,1717962664241,-500.0,0.00029298,4]
[328890943,1717962664251,-500.0,0.00029298,4]
[328890944,1717962664262,-500.0,0.00029298,4]
[328890945,1717962664274,-500.0,0.00029298,4]
[328890946,1717962664285,-500.0,0.00029298,4]
[328890947,1717962664297,-500.0,0.00029298,4]
[328890948,1717962664308,-151.0,0.00029298,7]
[328890949,1717962664319,-500.0,0.00029298,4]
[328890950,1717962664330,-518.98654103,0.00029298,4]
[328890951,1717962664341,-151.0,0.00029298,7]
[328890952,1717962664351,-151.0,0.00029298,7]
[328890953,1717962664362,-501.73243066,0.00029298,4]
[328890954,1717962664372,-151.0,0.00029298,7]
[328890955,1717962664383,-500.0,0.00029298,4]
[328890956,1717962664393,-500.0,0.00029298,4]
[328890957,1717962664405,-500.0,0.00029298,4]
[328890958,1717962664415,-343.19325261,0.00029298,4]
[328890959,1717962664426,-500.0,0.00029298,4]
[328890960,1717962664437,-558.48771354,0.00029298,4]
[328890961,1717962664447,-529.99882482,0.00029298,4]
[328890962,1717962664457,-513.76902837,0.00029298,4]
[328890963,1717962664467,-500.0,0.00029298,4]
[328890964,1717962664477,-500.0,0.00029298,4]
[328890965,1717962664487,-504.56074918,0.00029298,4]
[328890966,1717962664497,-512.35700399,0.00029298,4]
[328890967,1717962664507,-1133.44,0.00029298,4]
[328890968,1717962664517,-1133.44,0.00029298,4]
[328890969,1717962664528,-1133.44,0.00029298,4]
[328890970,1717962664540,-1133.44,0.00029298,4]
[328890971,1717962664551,-1133.44,0.00029298,4]
[328890972,1717962664563,-1133.44,0.00029298,4]
[328890973,1717962664573,-1133.44,0.00029298,4]
[328890974,1717962664583,-1133.44,0.00029298,4]
[328890975,1717962664594,-1133.44,0.00029298,4]
[328890976,1717962664606,-500.0,0.00029298,4]
[328890977,1717962664617,-1133.44,0.00029298,4]
[328890978,1717962664628,-533.73040322,0.00029298,4]
[328890979,1717962664637,-500.0,0.00029298,4]
[328890980,1717962664647,-1133.44,0.00029298,4]
[328890981,1717962664657,-500.0,0.00029298,4]
[328890982,1717962664667,-1133.44,0.00029298,4]
[328890983,1717962664678,-500.0,0.00029298,4]
[328890984,1717962664688,-1133.44,0.00029298,4]
[328890985,1717962664698,-244.76991887,0.00029298,4]
[328890986,1717962664709,-503.34841572,0.00029298,4]
[328890987,1717962664721,-500.0,0.00029298,4]
[328890988,1717962664732,-500.0,0.00029298,4]
[328890989,1717962664744,-500.0,0.00029298,4]
[328890990,1717962664755,-511.50034247,0.00029298,4]
[328890991,1717962664766,-500.0,0.00029298,4]
[328890992,1717962664777,-500.0,0.00029298,4]
[328890993,1717962664788,-516.66397077,0.00029298,4]
[328890994,1717962664798,-503.61345953,0.00029298,4]
[328890995,1717962664809,-446.52157124,0.00029298,4]
[328890996,1717962664819,-500.0,0.00029298,4]
[328890997,1717962664829,-1073.53,0.00029298,4]
[328890998,1717962664839,-506.59242343,0.00029298,4]
[328890999,1717962664849,-500.0,0.00029298,4]
[328891000,1717962664859,-1073.53,0.00029298,4]
[328891001,1717962664868,-500.0,0.00029298,4]
[328891002,1717962664878,-1073.53,0.00029298,4]
[328891003,1717962664888,-508.26963754,0.00029298,4]
[328891004,1717962664899,-852.15,0.00029298,4]
[328891005,1717962664909,-1073.53,0.00029298,4]
[328891006,1717962664920,-852.15,0.00029298,4]
[328891007,1717962664931,-1073.53,0.00029298,4]
[328891008,1717962664941,-548.37520764,0.00029298,4]
[328891009,1717962664952,-852.15,0.00029298,4]
[328891010,1717962664963,-1073.53,0.00029298,4]
[328891011,1717962664974,-1073.53,0.00029298,4]
[328891012,1717962664985,-852.15,0.00029298,4]
[328891013,1717962664995,-1073.53,0.00029298,4]
[328891014,1717962665006,-852.15,0.00029298,4]
[328891015,1717962665016,-1073.53,0.00029298,4]
[328891016,1717962665027,-852.15,0.00029298,4]
[328891017,1717962665038,-1073.53,0.00029298,4]
[328891018,1717962665049,-852.15,0.00029298,4]
[328891019,1717962665060,-511.46725936,0.00029298,4]
[328891020,1717962665071,-852.15,0.00029298,4]
[328891021,1717962665081,-1073.53,0.00029298,4]
[328891022,1717962665092,-510.1964242,0.00029298,4]
[328891023,1717962665102,-852.15,0.00029298,4]
[328891024,1717962665113,-1073.53,0.00029298,4]
[328891025,1717962665123,-852.15,0.00029298,4]
[328891026,1717962665133,-1073.53,0.00029298,4]
[328891027,1717962665144,-852.15,0.00029298,4]
[328891028,1717962665154,-852.15,0.00029298,4]
[328891029,1717962665166,-852.15,0.00029298,4]
[328891030,1717962665176,-500.0,0.00029298,4]
[328891031,1717962665187,-500.0,0.00029298,4]
[328891032,1717962665197,-525.68254127,0.00029298,4]
[328891033,1717962665207,-503.69883314,0.00029298,4]
[328891034,1717962665217,-500.0,0.00029298,4]
[328891035,1717962665228,-506.02800765,0.00029298,4]
[328891036,1717962665240,-513.84797913,0.00029298,4]
[328891037,1717962665250,-504.30376124,0.00029298,4]
[328891038,1717962665260,-500.0,0.00029298,4]
[328891039,1717962665271,-544.60847601,0.00029298,4]
[328891040,1717962665281,-500.0,0.00029298,4]
[328891041,1717962665291,-500.0,0.00029298,4]
[328891042,1717962665302,-500.0,0.00029298,4]
[328891043,1717962665313,-500.0,0.00029298,4]
[328891044,1717962665323,-500.0,0.00029298,4]
[328891045,1717962665333,-425.36175368,0.00029298,4]
[328891046,1717962665614,-74.63824632,0.00029298,4]
[328891047,1717962665625,-500.0,0.00029298,4]
[328891048,1717962665635,-545.48438108,0.00029298,4]
[328891049,1717962665646,-500.0,0.00029298,4]
[328891050,1717962665656,-500.0,0.00029298,4]
[328891051,1717962665666,-500.0,0.00029298,4]
[328891052,1717962665676,-500.0,0.00029298,4]
[328891053,1717962665687,-500.0,0.00029298,4]
[328891054,1717962665697,-500.0,0.00029298,4]
[328891055,1717962665707,-500.0,0.00029298,4]
[328891056,1717962665718,-500.0,0.00029298,4]
[328891057,1717962665728,-500.0,0.00029298,4]
[328891058,1717962665740,-500.0,0.00029298,4]
[328891059,1717962665751,-500.0,0.00029298,4]
[328891060,1717962665762,-500.0,0.00029298,4]
[328891061,1717962665773,-500.0,0.00029298,4]
[328891062,1717962665784,-512.89685748,0.00029298,4]
[328891063,1717962665795,-547.58510999,0.00029298,4]
[328891064,1717962665806,-500.0,0.00029298,4]
[328891065,1717962665817,-500.0,0.00029298,4]
[328891066,1717962665828,-500.0,0.00029298,4]
[328891067,1717962665839,-540.4380727,0.00029298,4]
[328891068,1717962665850,-503.75778875,0.00029298,4]
[328891069,1717962665861,-517.25451324,0.00029298,4]
[328891070,1717962665871,-573.14,0.00029298,4]
[328891071,1717962665881,-500.0,0.00029298,2]
[328891072,1717962665892,-573.14,0.00029298,4]
[328891073,1717962665902,-508.48329178,0.00029298,4]
[328891074,1717962665912,-500.0,0.00029298,2]
[328891075,1717962665923,-573.14,0.00029298,4]
[328891076,1717962665934,-500.0,0.00029298,2]
[328891077,1717962665945,-573.14,0.00029298,4]
[328891078,1717962665955,-500.0,0.00029298,2]
[328891079,1717962665965,-573.14,0.00029298,4]
[328891080,1717962665975,-500.0,0.00029298,2]
[328891081,1717962665986,-573.14,0.00029298,4]
[328891082,1717962665996,-500.0,0.00029298,2]
[328891083,1717962666006,-573.14,0.00029298,4]
[328891084,1717962666016,-500.0,0.00029298,2]
[328891085,1717962666026,-504.96533748,0.00029298,4]
[328891086,1717962666036,-573.14,0.00029298,4]
[328891087,1717962666047,-500.0,0.00029298,2]
[328891088,1717962666057,-573.14,0.00029298,4]
[328891089,1717962666070,-500.0,0.00029298,2]
[328891090,1717962666080,-573.14,0.00029298,4]
[328891091,1717962666090,-500.0,0.00029298,2]
[328891092,1717962666100,-573.14,0.00029298,4]
[328891093,1717962666112,-500.0,0.00029298,2]
[328891094,1717962666123,-573.14,0.00029298,4]
[328891095,1717962666133,-500.0,0.00029298,2]
[328891096,1717962666144,-573.14,0.00029298,4]
[328891097,1717962666155,-500.0,0.00029298,2]
[328891098,1717962666168,-503.61362203,0.00029298,4]
[328891099,1717962666181,-500.0,0.00029298,4]
[328891100,1717962666192,-500.0,0.00029298,4]
[328891101,1717962666203,-500.0,0.00029298,4]
[328891102,1717962666228,-510.47145486,0.00029298,4]
[328891103,1717962666239,-500.0,0.00029298,4]
[328891104,1717962666251,-500.0,0.00029298,4]
[328891105,1717962666263,-500.0,0.00029298,4]
[328891106,1717962666275,-500.0,0.00029298,4]
[328891107,1717962666285,-500.0,0.00029298,4]
[328891108,1717962666296,-500.0,0.00029298,4]
[328891109,1717962666307,-500.0,0.00029298,4]
[328891110,1717962666323,-509.45954422,0.00029298,4]
[328891111,1717962666334,-500.0,0.00029298,4]
[328891112,1717962666345,-627.05,0.00029298,4]
[328891113,1717962666355,-500.0,0.00029298,4]
[328891114,1717962666365,-192.29341658,0.00029298,4]
[328891115,1717962666376,-627.05,0.00029298,4]
[328891116,1717962666386,-627.05,0.00029298,4]
[328891117,1717962666397,-627.05,0.00029298,4]
[328891118,1717962666407,-627.05,0.00029298,4]
[328891119,1717962666418,-627.05,0.00029298,4]
[328891120,1717962666429,-500.0,0.00029298,4]
[328891121,1717962666440,-500.0,0.00029298,4]
[328891122,1717962666450,-627.05,0.00029298,4]
[328891123,1717962666461,-500.0,0.00029298,4]
[328891124,1717962666472,-627.05,0.00029298,4]
[328891125,1717962666483,-509.71611247,0.00029298,4]
[328891126,1717962666493,-500.0,0.00029298,4]
[328891127,1717962666503,-627.05,0.00029298,4]
[328891128,1717962666514,-500.0,0.00029298,4]
[328891129,1717962666524,-627.05,0.00029298,4]
[328891130,1717962666534,-500.0,0.00029298,4]
[328891131,1717962666544,-627.05,0.00029298,4]
[328891132,1717962666554,-500.0,0.00029298,4]
[328891133,1717962666568,-586.54181691,0.00029298,4]
[328891134,1717962666578,-627.05,0.00029298,4]
[328891135,1717962666588,-500.0,0.00029298,4]
[328891136,1717962666599,-627.05,0.00029298,4]
[328891137,1717962666610,-500.0,0.00029298,4]
[328891138,1717962666620,-500.0,0.00029298,4]
[328891139,1717962666631,-549.00108659,0.00029298,4]
[328891140,1717962666642,-506.92932345,0.00029298,4]
[328891141,1717962666652,-500.0,0.00029298,4]
[328891142,1717962666662,-543.23132478,0.00029298,4]
[328891143,1717962666672,-506.64212167,0.00029298,4]
[328891144,1717962666682,-500.0,0.00029298,4]
[328891145,1717962666692,-500.0,0.00029298,4]
[328891146,1717962666702,-515.87844912,0.00029298,4]
[328891147,1717962666795,-608.80491292,0.00029298,4]
[328891148,1717962666807,-500.0,0.00029298,4]
[328891149,1717962666821,-500.0,0.00029298,4]
[328891150,1717962666831,-500.0,0.00029298,4]
[328891151,1717962666842,-500.0,0.00029298,4]
[328891152,1717962666852,-500.0,0.00029298,4]
[328891153,1717962666863,-500.0,0.00029298,4]
[328891154,1717962666874,-500.0,0.00029298,4]
[328891155,1717962666885,-500.0,0.00029298,4]
[328891156,1717962666895,-500.0,0.00029298,4]
[328891157,1717962666906,-500.0,0.00029298,4]
[328891158,1717962666917,-500.0,0.00029298,4]
[328891159,1717962666928,-500.0,0.00029298,4]
[328891160,1717962666939,-500.0,0.00029298,4]
[328891161,1717962666950,-500.0,0.00029298,4]
[328891162,1717962666961,-500.0,0.00029298,4]
[328891163,1717962666972,-500.0,0.00029298,4]